Workbook

Sheet 发文附件
A1: 附件：
A2: 循环经济试点示范项目验收清算补助资金表
G3: 单位：万元
A4: 省份 | B4: 项目类别 | C4: 项目名称 | D4: 核定补助资金 | E4: 已拨付补助资金 | F4: 清算资金
F5: 小计 | G5: 应拨付剩余资金 | H5: 应扣回已拨资金
A6: 天津市 | B6: 餐厨试点城市 | C6: 和平区 | D6: =SUM(E6,F6) -> 0 | E6: 300 | F6: =SUM(G6:H6) -> -300 | H6: -300
B7: 小计 | D7: =SUM(D6) -> 0 | E7: =SUM(E6) -> 300 | F7: =SUM(F6) -> -300 | G7: =SUM(G6) -> 0 | H7: =SUM(H6) -> -300
A8: 内蒙古自治区 | B8: 园区循环化改造 | C8: 内蒙古巴彦淖尔经济技术开发区 | D8: 6030 | E8: 3465 | F8: 2565 | G8: 2565 | I8: =IF(G8+H8=F8,0,1) -> 0
B9: 餐厨试点城市 | C9: 乌海市 | D9: 600 | E9: 300 | F9: 300 | G9: 300
B10: 小计 | D10: =SUM(D8:D9) -> 6630 | E10: =SUM(E8:E9) -> 3765 | F10: =SUM(F8:F9) -> 2865 | G10: =SUM(G8:G9) -> 2865 | H10: =SUM(H8:H9) -> 0 | I10: 0
A11: 辽宁省 | B11: 园区循环化改造 | C11: 鞍山经济开发区 | D11: =SUM(E11,F11) -> 13650 | E11: 11800 | F11: =SUM(G11:H11) -> 1850 | G11: 1850 | I11: 0
B12: 小计 | D12: =SUM(D11) -> 13650 | E12: 11800 | F12: 1850 | G12: 1850 | H12: 0 | I12: 0
A13: 黑龙江省 | B13: 园区循环化改造 | C13: 牡丹江经济技术开发区 | D13: 3738 | E13: 2700 | F13: 1038 | G13: 1038
B14: 餐厨试点城市 | C14: 大庆市 | D14: 1800 | E14: 900 | F14: 900 | G14: 900
B15: 小计 | D15: =SUM(D13:D14) -> 5538 | E15: 3600 | F15: 1938 | G15: 1938 | H15: 0 | I15: =IF(G15+H15=F15,0,1) -> 0
A16: 上海市 | B16: 园区循环化改造 | C16: 上海青浦工业园区 | D16: =SUM(E16,F16) -> 6215 | E16: 3200 | F16: =SUM(G16:H16) -> 3015 | G16: 3015 | I16: 0
B17: 园区循环化改造 | C17: 上海临港再制造产业示范基地 | D17: 5709 | E17: 4665 | F17: 1044 | G17: 1044
B18: 小计 | D18: =SUM(D16:D17) -> 11924 | E18: 7865 | F18: 4059 | G18: 4059 | H18: 0 | I18: 0
A19: 江苏省 | B19: 园区循环化改造 | C19: 江苏邳州经济开发区 | D19: 5411 | E19: 4190 | F19: 1221 | G19: 1221 | I19: 0
B20: 小计 | D20: =SUM(D19) -> 5411 | E20: 4190 | F20: 1221 | G20: 1221 | H20: 0 | I20: 0
A21: 浙江省 | B21: 园区循环化改造 | C21: 丽水经济技术开发区 | D21: =SUM(E21,F21) -> 24504 | E21: 15000 | F21: =SUM(G21:H21) -> 9504 | G21: 9504 | I21: 0
B22: 园区循环化改造 | C22: 宁波大榭开发区 | D22: 6630 | E22: 3565 | F22: 3065 | G22: 3065
B23: 餐厨试点城市 | C23: 绍兴市 | D23: 2400 | E23: 1200 | F23: 1200 | G23: 1200
B24: 小计 | D24: =SUM(D21:D23) -> 33534 | E24: 19765 | F24: 13769 | G24: 13769 | H24: 0 | I24: =IF(G24+H24=F24,0,1) -> 0
A25: 安徽省 | B25: 园区循环化改造 | C25: 叶集经济开发区 | D25: =SUM(E25,F25) -> 7275 | E25: 4420 | F25: =SUM(G25:H25) -> 2855 | G25: 2855 | I25: 0
B26: 餐厨试点城市 | C26: 铜陵市 | D26: 636 | E26: 318 | F26: 318 | G26: 318
B27: 小计 | D27: =SUM(D25:D26) -> 7911 | E27: 4738 | F27: 3173 | G27: 3173 | H27: 0 | I27: 0
A28: 福建省 | B28: 园区循环化改造 | C28: 福建泉港石化工业园区 | D28: 22608 | E28: 12615 | F28: 9993 | G28: 9993 | I28: 0
B29: 园区循环化改造 | C29: 厦门市集美（杏林）台商投资区 | D29: 6677 | E29: 4635 | F29: 2042 | G29: 2042
B30: 餐厨试点城市 | C30: 厦门市 | D30: 2304 | E30: 1152 | F30: 1152 | G30: 1152
B31: 小计 | D31: =SUM(D28:D30) -> 31589 | E31: 18402 | F31: 13187 | G31: 13187 | H31: 0 | I31: =IF(G31+H31=F31,0,1) -> 0
A32: 江西省 | B32: 园区循环化改造 | C32: 井冈山经济技术开发区 | D32: =SUM(E32,F32) -> 10218 | E32: 6405 | F32: =SUM(G32:H32) -> 3813 | G32: 3813 | I32: 0
B33: 小计 | D33: =SUM(D32) -> 10218 | E33: 6405 | F33: 3813 | G33: 3813 | H33: 0 | I33: 0
A34: 山东省 | B34: 园区循环化改造 | C34: 潍坊滨海经济技术开发区 | D34: 8184 | E34: 5815 | F34: 2369 | G34: 2369
B35: 小计 | D35: =SUM(D34) -> 8184 | E35: 5815 | F35: 2369 | G35: 2369 | H35: 0 | I35: =IF(G35+H35=F35,0,1) -> 0
A36: 河南省 | B36: 园区循环化改造 | C36: 新乡经济技术开发区 | D36: 4265 | E36: 3685 | F36: 580 | G36: 580
B37: 餐厨试点城市 | C37: 焦作市 | D37: 1200 | E37: 600 | F37: 600 | G37: 600
B38: 小计 | D38: =SUM(D36:D37) -> 5465 | E38: 4285 | F38: 1180 | G38: 1180 | H38: 0 | I38: 0
A39: 湖北省 | B39: 城市矿产 | C39: 湖北大冶有色再生资源循环利用产业园 | D39: =SUM(E39,F39) -> 10000 | E39: 5000 | F39: =SUM(G39:H39) -> 5000 | G39: 5000 | I39: 0
B40: 园区循环化改造 | C40: 湖北孝感高新技术产业开发区 | D40: 14154 | E40: 9340 | F40: 4814 | G40: 4814
B41: 小计 | D41: =SUM(D39:D40) -> 24154 | E41: 14340 | F41: 9814 | G41: 9814 | H41: 0 | I41: =IF(G41+H41=F41,0,1) -> 0
A42: 湖南省 | B42: 园区循环化改造 | C42: 衡阳常宁水口山经济开发区 | D42: 11646 | E42: 6845 | F42: 4801 | G42: 4801 | I42: 0
B43: 餐厨试点城市 | C43: 娄底市 | D43: 720 | E43: 360 | F43: 360 | G43: 360
B44: 餐厨试点城市 | C44: 株洲市 | D44: 1536 | E44: 768 | F44: 768 | G44: 768
B45: 小计 | D45: =SUM(D42:D44) -> 13902 | E45: 7973 | F45: 5929 | G45: 5929 | H45: 0 | I45: 0
A46: 广东省 | B46: 园区循环化改造 | C46: 湛江经济技术开发区 | D46: =SUM(E46,F46) -> 16181 | E46: 9755 | F46: =SUM(G46:H46) -> 6426 | G46: 6426 | I46: 0
B47: 园区循环化改造 | C47: 深圳国家自主创新示范区坪山园区 | D47: 4118 | E47: 2275 | F47: 1843 | G47: 1843
B48: 小计 | D48: =SUM(D46:D47) -> 20299 | E48: 12030 | F48: 8269 | G48: 8269 | H48: 0 | I48: =IF(G48+H48=F48,0,1) -> 0
A49: 广西壮族自治区 | B49: 城市矿产 | C49: 广西玉林龙潭进口再生资源加工利用园区 | D49: 9500 | E49: 7500 | F49: 2000 | G49: 2000 | I49: 0
B50: 园区循环化改造 | C50: 广西—东盟经济技术开发区 | D50: 9185 | E50: 5910 | F50: 3275 | G50: 3275 | I50: 0
B51: 小计 | D51: =SUM(D49:D50) -> 18685 | E51: 13410 | F51: 5275 | G51: 5275 | H51: 0 | I51: 0
A52: 重庆市 | B52: 餐厨试点城市 | C52: 涪陵区 | D52: =SUM(E52,F52) -> 984 | E52: 492 | F52: =SUM(G52:H52) -> 492 | G52: 492 | I52: 0
B53: 小计 | D53: =SUM(D52) -> 984 | E53: 492 | F53: 492 | G53: 492 | H53: 0 | I53: 0
A54: 四川省 | B54: 餐厨试点城市 | C54: 南充市 | D54: 1526 | E54: 763 | F54: 763 | G54: 763 | I54: 0
B55: 小计 | D55: =SUM(D54) -> 1526 | E55: 763 | F55: 763 | G55: 763 | H55: 0 | I55: 0
A56: 贵州省 | B56: 园区循环化改造 | C56: 贵州大龙经济开发区 | D56: 10381 | E56: 7955 | F56: 2426 | G56: 2426
B57: 园区循环化改造 | C57: 贵州红果经济开发区 | D57: 9184 | E57: 7295 | F57: 1889 | G57: 1889
B58: 小计 | D58: =SUM(D56:D57) -> 19565 | E58: 15250 | F58: 4315 | G58: 4315 | H58: 0 | I58: =IF(G58+H58=F58,0,1) -> 0
A59: 西藏自治区 | B59: 餐厨试点城市 | C59: 拉萨市 | D59: =SUM(E59,F59) -> 600 | E59: 300 | F59: =SUM(G59:H59) -> 300 | G59: 300 | I59: 0
B60: 小计 | D60: =SUM(D59) -> 600 | E60: 300 | F60: 300 | G60: 300 | H60: 0 | I60: 0
A61: 陕西省 | B61: 城市矿产 | C61: 陕西再生资源产业园 | D61: 6186 | E61: 3750 | F61: 2436 | G61: 2436 | I61: 0
B62: 园区循环化改造 | C62: 陕西省铜川经济技术开发区董家河循环经济产业示范园 | D62: 7120 | E62: 5435 | F62: 1685 | G62: 1685
B63: 餐厨试点城市 | C63: 西安市 | D63: 2640 | E63: 1320 | F63: 1320 | G63: 1320 | I63: =IF(G63+H63=F63,0,1) -> 0
B64: 餐厨试点城市 | C64: 延安市 | D64: 840 | E64: 420 | F64: 420 | G64: 420
B65: 小计 | D65: =SUM(D61:D64) -> 16786 | E65: 10925 | F65: 5861 | G65: 5861 | H65: 0 | I65: 0
A66: 甘肃省 | B66: 园区循环化改造 | C66: 张掖经济技术开发区生态科技产业园 | D66: =SUM(E66,F66) -> 8057 | E66: 5695 | F66: =SUM(G66:H66) -> 2362 | G66: 2362 | I66: 0
B67: 餐厨试点城市 | C67: 白银市 | D67: 708 | E67: 354 | F67: 354 | G67: 354
B68: 小计 | D68: =SUM(D66:D67) -> 8765 | E68: 6049 | F68: 2716 | G68: 2716 | H68: 0 | I68: =IF(G68+H68=F68,0,1) -> 0
A69: 青海省 | B69: 园区循环化改造 | C69: 西宁经济技术开发区东川工业园区 | D69: 6604 | E69: 3440 | F69: 3164 | G69: 3164 | I69: 0
B70: 小计 | D70: =SUM(D69) -> 6604 | E70: 3440 | F70: 3164 | G70: 3164 | H70: 0 | I70: 0
A71: 宁夏回族自治区 | B71: 园区循环化改造 | C71: 宁东能源化工基地 | D71: =SUM(E71,F71) -> 16989 | E71: 11210 | F71: =SUM(G71:H71) -> 5779 | G71: 5779 | I71: 0
B72: 小计 | D72: =SUM(D71) -> 16989 | E72: 11210 | F72: 5779 | G72: 5779 | H72: 0 | I72: 0
A73: 新疆维吾尔自治区 | B73: 城市矿产 | C73: 新疆克拉玛依石油化工工业园区 | D73: =SUM(E73,F73) -> 6210 | E73: 3450 | F73: =SUM(G73:H73) -> 2760 | G73: 2760 | I73: 0
B74: 园区循环化改造 | C74: 新疆准东经济技术开发区 | D74: =SUM(E74,F74) -> 5365 | E74: 5120 | F74: =SUM(G74:H74) -> 245 | G74: 245 | I74: 0
B75: 小计 | D75: =SUM(D73:D74) -> 11575 | E75: 8570 | F75: 3005 | G75: 3005 | H75: 0 | I75: 0
A76: 新疆生产建设兵团 | B76: 园区循环化改造 | C76: 石河子经济技术开发区 | D76: =SUM(E76,F76) -> 13046 | E76: 11710 | F76: =SUM(G76:H76) -> 1336 | G76: 1336 | I76: 0
B77: 园区循环化改造 | C77: 新疆五家渠经济技术开发区 | D77: =SUM(E77,F77) -> 7156 | E77: 4675 | F77: =SUM(G77:H77) -> 2481 | G77: 2481 | I77: 0
B78: 小计 | D78: =SUM(D76:D77) -> 20202 | E78: 16385 | F78: 3817 | G78: 3817 | H78: 0 | I78: 0
A79: 合计 | D79: =SUBTOTAL(9,D7,D10,D12,D15,D18,D20,D24,D27,D31,D33,D35,D38,D41,D45,D48,D51,D53,D55,D58,D60,D65,D68,D70,D72,D78,D75) -> 320690 | E79: 212067 | F79: 108623 | G79: 108923 | H79: -300
